[Event "15th Tashkent Open Agzamov 2022"]
[Site "Tashkent"]
[Date "2022.05.07"]
[Round "6.1"]
[White "Sindarov, Javokhir"]
[Black "Indjic, Aleksandar"]
[Result "0-1"]
[ECO "B90"]
[WhiteElo "2609"]
[BlackElo "2621"]
[Annotator "TA"]
[PlyCount "108"]
[EventDate "2022.05.05"]
[EventType "swiss"]
[EventCountry "UZB"]
[SourceTitle "playchess.com"]
[Source "ChessBase"]
[SourceQuality "1"]
[TimeControl "5400+30"]

{[%evp 24,108,16,0,7,0,0,0,0,0,0,0,26,0,0,0,0,0,6,-32,0,0,0,-39,-19,-38,-62,-60,0,-5,-7,-6,-17,-41,-32,-45,-20,-41,-26,-17,-32,-29,-20,-25,-45,-92,-101,-108,-110,-111,-105,-93,-105,-83,-79,-83,-68,-143,-123,-174,-156,-159,-165,-198,-200,-257,-205,-293,-286,-498,-494,-509,-433,-552,-518,-956,-939,-1832,-2174,-2610,-1904,-2511,-2305,-2199,-1908,-1387,-1395]} 1. e4 {[%emt 0:00:07]} c5 {[%emt 0:03:55]} 2. Nf3 {[%emt 0:00:59]} d6 {[%emt 0:00:14]} 3. d4 {[%emt 0:00:47]} cxd4 {[%emt 0:00:09]} 4. Nxd4 {[%emt 0:00:06]} Nf6 {[%emt 0:00:09]} 5. Nc3 {[%emt 0:00:08]} a6 {[%emt 0:00:07]} 6. Be3 {[%emt 0:02:38]} e5 {[%emt 0:01:07]} 7. Nb3 {[%emt 0:00:03]} Be7 {[%emt 0:00:37]} 8. f3 {[%emt 0:00:30]} Be6 {[%emt 0:00:17]} 9. Qd2 {[%emt 0:00:04]} h5 {[%emt 0:00:11]} 10. Nd5 {[%emt 0:00:26]} Bxd5 {[%emt 0:00:25]} 11. exd5 {[%emt 0:00:04]} Nbd7 {[%emt 0:00:11]} 12. O-O-O {[%emt 0:00:25]} Qc7 {[%emt 0:00:12]} 13. Kb1 {[%emt 0:02:23]} Nb6 $1 {[%emt 0:01:30] Prevents c4. B90: Sicilian Najdorf: Unusual White 6th moves, 6 Be3 Ng4 and 6 Be3 e5.} 14. Qa5 {[%emt 0:06:46] 14.Bxb6 is not played anymore.} Rc8 {[%emt 0:00:25]} 15. c3 {[%emt 0:09:57]} Bd8 {[%emt 0:01:26] The position is equal.} 16. Bxb6 {[%emt 0:24:24]} Qxb6 {[%emt 0:00:22]} 17. Qa4+ {[%emt 0:00:05]} Ke7 $5 {[%emt 0:08:45][%mdl 4] [#] An interesting side line.} 18. g3 $146 {[%emt 0:04:25]} ({Predecessor:} 18. Bd3 Re8 19. Bf5 Rc7 20. c4 Kf8 21. c5 dxc5 22. Na5 c4 23. Qa3+ Kg8 24. d6 {0-1 (71) Behling,H (1934)-Geissler,W (2121) GER email 2010}) 18... Re8 {[%emt 0:00:31]} 19. g4 {[%emt 0:08:49]} Qe3 {[%emt 0:01:37]} 20. Bd3 {[%emt 0:37:24] Rhe1 is the strong threat.} Kf8 {[%emt 0:13:05]} 21. Qb4 {[%emt 0:00:00][%csl LRb7,LRd6]} Be7 {[%emt 0:10:23]} 22. Bf5 {[%emt 0:00:00]} Rb8 {[%emt 0:00:32]} 23. h4 {[%emt 0:00:00]} (23. Rhf1 $5 {[%cal Rf3f4]}) 23... Qxf3 {[%emt 0:07:40][%cal Rf6g4]} (23... g6 $5 {[%cal Rg6f5]} 24. g5 {[#]} Nxd5 $1 25. Rxd5 gxf5 $17) 24. Rhf1 {[%emt 0:00:00]} Qg2 {[%emt 0:00:14]} 25. Rg1 {[%emt 0:00:00]} Qh2 {[%emt 0:00:16]} (25... Qf2 26. Rdf1 Qxh4 27. c4 $17) (25... Qe2 $15) 26. g5 $132 {[%emt 0:00:44][%mdl 2048] [#] White is fighting back} Nxd5 {[%emt 0:01:46]} 27. Qe4 {[%emt 0:00:03]} Nf4 {[%emt 0:01:04] Threatens to win with ...g6.} 28. Bd7 {[%emt 0:00:03] Hoping for Qh7.} g6 {[%emt 0:03:56] aiming for ...Red8.} 29. Bxe8 {[%emt 0:00:07]} Kxe8 {[%emt 0:03:53]} 30. c4 {[%emt 0:00:43][%cal Oc4c5] And now c5! would win.} b6 {[%emt 0:03:14] Against c5} (30... Qxh4 31. c5 Rd8 32. cxd6 (32. Qxb7 Ne6 $16) 32... Rxd6 33. Qxb7 Rxd1+ 34. Rxd1 $11) 31. Rh1 {[%emt 0:02:15]} Qe2 {[%emt 0:00:14]} 32. Nd2 {[%emt 0:00:40]} Kd7 {[%emt 0:03:46]} 33. Qxe2 {[%emt 0:01:14]} Nxe2 {[%emt 0:00:02]} 34. Ne4 {[%emt 0:00:27]} (34. Rh3 $15) 34... Rc8 $17 {[%emt 0:00:15]} 35. b3 {[%emt 0:00:35]} Nd4 {[%emt 0:00:35]} 36. Kb2 {[%emt 0:00:25]} b5 {[%emt 0:01:49]} 37. Rc1 {[%emt 0:00:33]} bxc4 {[%emt 0:01:16]} 38. Rxc4 {[%emt 0:00:03]} Rb8 {[%emt 0:00:44]} 39. Nc3 {[%emt 0:00:53]} Bd8 {[%emt 0:04:23]} 40. Ra4 {[%emt 0:00:42]} (40. Nd5 $15) 40... a5 {[%emt 0:00:09]} 41. Re1 {[%emt 0:00:10]} (41. Nd5 $17 {might work better.}) 41... Nf5 $19 {[%emt 0:00:39]} 42. Nd5 {[%emt 0:00:17]} Rb5 {[%emt 0:00:54]} 43. Ne3 {[%emt 0:01:04]} Bb6 {[%emt 0:00:47]} 44. Nc4 {[%emt 0:00:19]} ({Don't play} 44. Nxf5 gxf5 45. Rc4 f4) 44... Bc7 {[%emt 0:04:08]} 45. Ne3 {[%emt 0:00:29]} (45. Na3 {was necessary.} Rb4 46. Rxb4 axb4 47. Nc2) 45... d5 {[%emt 0:00:19]} 46. Nxf5 $2 {[%emt 0:00:40]} (46. b4 {keeps fighting.}) 46... gxf5 {[%emt 0:00:02][%cal Bg6f5,Bf5f4,Bf4f3,Bf3f2][%mdl 4128] Endgame KRR-KRB. Black is clearly winning.} 47. Rg1 {[%emt 0:00:04]} Bb6 {[%emt 0:03:51]} 48. Rg2 {[%emt 0:00:39]} f4 {[%emt 0:00:06]} 49. g6 {[%emt 0:00:08]} (49. Rd2 $142 Ke6 50. Kc2) 49... fxg6 {[%emt 0:00:07]} ({Worse is} 49... f3 50. g7 fxg2 51. g8=Q $11) 50. Rxg6 {[%emt 0:00:22]} f3 {[%emt 0:00:16]} 51. Kc2 {[%emt 0:00:54]} f2 {[%emt 0:00:09]} 52. Rf6 {[%emt 0:00:10]} Ke7 {[%emt 0:00:06]} 53. Rf5 {[%emt 0:01:11]} Ke6 {[%emt 0:00:07]} 54. Rf8 {[%emt 0:00:33]} Bc5 {[%emt 0:00:06] Weighted Error Value: White=0.51/Black=0.08 (flawless)} 0-1

[Event "15th Tashkent Open Agzamov 2022"]
[Site "Tashkent"]
[Date "2022.05.07"]
[Round "6.2"]
[White "Vakhidov, Jakhongir"]
[Black "Asadli, Vugar"]
[Result "1/2-1/2"]
[ECO "A21"]
[WhiteElo "2552"]
[BlackElo "2578"]
[Annotator "TA"]
[PlyCount "41"]
[EventDate "2022.05.05"]
[EventType "swiss"]
[EventCountry "UZB"]
[SourceTitle "playchess.com"]
[Source "ChessBase"]
[SourceQuality "1"]
[TimeControl "5400+30"]

{[%evp 9,41,0,0,-8,14,13,26,20,19,14,15,22,26,-19,-11,-19,-28,-50,-22,-50,-43,-77,-23,-54,0,0,0,0,0,0,0,0,0,0]} 1. c4 {[%emt 0:07:30]} e5 {[%emt 0:00:18]} 2. Nc3 {[%emt 0:00:34]} Bb4 {[%emt 0:00:10]} 3. Nd5 {[%emt 0:00:06]} Be7 {[%emt 0:00:08]} 4. d4 {[%emt 0:02:06]} d6 {[%emt 0:00:07]} 5. e4 {[%emt 0:00:05]} Nf6 {[%emt 0:00:37]} 6. Nxe7 {[%emt 0:00:06] A21: English Opening: 1...e5 2 Nc3.} Qxe7 {[%emt 0:00:05]} 7. f3 $1 {[%emt 0:00:06]} exd4 {[%emt 0:00:28]} 8. Qxd4 {[%emt 0:00:18] White has an edge.} Nc6 {[%emt 0:00:05]} 9. Qc3 {[%emt 0:00:54]} O-O {[%emt 0:00:43] White must now prevent ...d5.} 10. Bg5 {[%emt 0:07:35]} Qe5 {[%emt 0:00:35] [#]} 11. Bd2 $146 {[%emt 0:09:23]} ({Predecessor:} 11. Bxf6 gxf6 12. Ne2 Be6 13. Ng3 a5 14. Rc1 a4 15. Bd3 Qc5 16. Rf1 Qe3+ 17. Kd1 {½-½ (35) Coyne,D (2333)-Fischer,D (2350) ICCF email 2016}) 11... Nd7 {[%emt 0:02:18]} 12. O-O-O {[%emt 0:03:00]} Nc5 {[%emt 0:02:23]} 13. g4 {[%emt 0:03:46] Prevents f5.} a5 {[%emt 0:04:45]} 14. Qe3 {[%emt 0:14:37]} (14. Nh3 {feels hotter.} Nb4 15. Qa3 Bd7 16. Be3) 14... Qe8 {[%emt 0:05:09] ...Nb4 is the strong threat.} 15. Ne2 {[%emt 0:03:27] [#]} Be6 {[%emt 0:00:00]} (15... Ne5 $1 $17 {And now ...Ncd3+ would win.} 16. Nc3 Be6) 16. Bc3 {[%emt 0:05:54]} Nb4 {[%emt 0:19:54] Pair of Knights!} (16... Bxc4 $15 17. b3 Bxe2 18. Bxe2 Qe7) 17. Bxg7 $11 {[%emt 0:01:33] Threatening mate with Bf6. The position is equal.} Kxg7 {[%emt 0:09:26]} (17... Qa4 $5 18. Nd4 Kxg7 19. Qg5+ Kh8 20. Qf6+ Kg8 21. Qg5+ Kh8 22. Qf6+ Kg8 23. Qg5+ Kh8 $11) 18. Qg5+ {[%emt 0:38:30]} Kh8 19. Qf6+ {[%emt 0:00:00]} Kg8 {[%emt 0:00:03] [#] aiming for ...Nd7.} 20. Qg5+ {[%emt 0:00:00]} Kh8 {[%emt 0:00:00]} 21. Qf6+ {[%emt 0:01:30] Weighted Error Value: White=0.11 (very precise) /Black=0.12 (very precise)} 1/2-1/2

[Event "15th Tashkent Open Agzamov 2022"]
[Site "Tashkent"]
[Date "2022.05.07"]
[Round "6.3"]
[White "Utegaliyev, Azamat"]
[Black "Romanov, Evgeny"]
[Result "1/2-1/2"]
[ECO "A36"]
[WhiteElo "2463"]
[BlackElo "2573"]
[Annotator "TA"]
[PlyCount "47"]
[EventDate "2022.05.05"]
[EventType "swiss"]
[EventCountry "UZB"]
[SourceTitle "playchess.com"]
[Source "ChessBase"]
[SourceQuality "1"]
[TimeControl "5400+30"]

{[%evp 9,47,0,1,0,4,0,0,0,22,14,14,0,52,35,35,33,20,23,27,3,8,7,20,-6,-3,-6,0,0,0,0,0,-15,-14,-14,-7,-14,30,0,0,-11]} 1. c4 {[%emt 0:00:05]} c5 {[%emt 0:04:40]} 2. g3 {[%emt 0:00:29]} Nc6 {[%emt 0:00:16]} 3. Bg2 {[%emt 0:00:06]} g6 {[%emt 0:00:11]} 4. Nc3 {[%emt 0:00:32]} Bg7 {[%emt 0:00:11]} 5. d3 {[%emt 0:01:12]} d6 {[%emt 0:00:28]} 6. Qd2 {[%emt 0:00:28] A36: Symmetrical English vs ...g6: 4 Bg2 Bg7.} e6 {[%emt 0:01:09]} 7. b3 {[%emt 0:00:22]} Nge7 {[%emt 0:00:44]} 8. Bb2 {[%emt 0:00:21]} a6 {[%emt 0:05:23]} 9. h4 {[%emt 0:01:14] [#]} h5 $146 {[%emt 0:01:12]} ({Predecessor:} 9... h6 10. e3 Rb8 11. Ne4 e5 12. f4 b6 13. Nf3 Bf6 14. h5 Qd7 15. hxg6 fxg6 16. Nh4 {1-0 (16) Movsziszian,K (2474)-Palchuk,A (2174) Platja d'Aro 2021}) 10. Nf3 {[%emt 0:00:39]} Nd4 {[%emt 0:02:54]} (10... O-O $11) 11. e3 {[%emt 0:08:05]} Nxf3+ {[%emt 0:01:29]} 12. Bxf3 {[%emt 0:00:33]} e5 {[%emt 0:01:38]} 13. O-O {[%emt 0:01:12][%cal Od3d4]} O-O {[%emt 0:00:59]} 14. Rad1 {[%emt 0:07:55][%cal Od3d4]} Rb8 {[%emt 0:02:12]} 15. Rfe1 {[%emt 0:07:50]} Nf5 {[%emt 0:05:23]} 16. Qe2 {[%emt 0:01:06]} b5 {[%emt 0:02:20]} 17. Be4 {[%emt 0:01:49]} Be6 {[%emt 0:01:58]} 18. Bg2 {[%emt 0:06:47]} Ne7 {[%emt 0:05:21]} 19. Ne4 {[%emt 0:01:59]} Bg4 {[%emt 0:01:43]} 20. Bf3 {[%emt 0:00:51]} Bxf3 {[%emt 0:00:39]} 21. Qxf3 {[%emt 0:00:04]} Nf5 {[%emt 0:01:07]} 22. Rd2 {[%emt 0:03:51]} a5 {[%emt 0:03:34]} 23. Qd1 {[%emt 0:09:03]} Re8 {[%emt 0:02:04]} 24. Nc3 {[%emt 0:11:19] Weighted Error Value: White=0.08 (flawless) /Black=0.09 (flawless)} 1/2-1/2

[Event "15th Tashkent Open Agzamov 2022"]
[Site "Tashkent"]
[Date "2022.05.07"]
[Round "6.4"]
[White "Mchedlishvili, Mikheil"]
[Black "Suleymenov, Alisher"]
[Result "0-1"]
[ECO "B99"]
[WhiteElo "2595"]
[BlackElo "2445"]
[Annotator "TA"]
[PlyCount "94"]
[EventDate "2022.05.05"]
[EventType "swiss"]
[EventCountry "UZB"]
[SourceTitle "playchess.com"]
[Source "ChessBase"]
[SourceQuality "1"]
[TimeControl "5400+30"]

{[%evp 22,94,64,61,58,54,32,41,53,41,55,33,52,47,68,68,69,0,40,-29,54,23,21,26,26,20,23,19,17,0,0,-13,0,-7,0,-8,-14,-68,0,0,0,-22,-40,-58,-58,-58,-65,-64,-50,-50,-53,-164,-76,-481,-464,-481,-481,-466,-466,-466,-451,-446,-440,-556,-556,-556,-556,-542,-542,-542,-541,-499,-462,-560,-487]} 1. e4 {[%emt 0:04:21]} c5 {[%emt 0:00:05]} 2. Nc3 {[%emt 0:00:24]} d6 {[%emt 0:02:05]} 3. Nf3 {[%emt 0:01:26]} Nf6 {[%emt 0:00:07]} 4. d4 {[%emt 0:00:53]} cxd4 {[%emt 0:00:06]} 5. Nxd4 {[%emt 0:00:23]} a6 {[%emt 0:00:05]} 6. Bg5 {[%emt 0:01:19]} e6 {[%emt 0:02:10]} 7. f4 {[%emt 0:01:15]} Be7 {[%emt 0:00:06]} 8. Qf3 {[%emt 0:01:02]} Qc7 {[%emt 0:01:46]} 9. O-O-O {[%emt 0:00:47]} Nbd7 {[%emt 0:00:05]} 10. g4 {[%emt 0:02:17][%cal Bg2g4,Bg4g5][%mdl 32]} h6 {[%emt 0:00:15]} 11. Bxf6 {[%emt 0:03:13]} Bxf6 {[%emt 0:00:05]} 12. h4 {[%emt 0:02:55]} Nb6 $1 {[%emt 0:00:04][%mdl 4] now scores much better than the old 12...Qb6. B99: Sicilian Najdorf: 6 Bg5 e6 7 f4 Be7 8 Qf3 Qc7 9 0-0-0 Nbd7.} 13. g5 {[%emt 0:08:27]} Bxd4 {[%emt 0:00:05]} 14. Rxd4 {[%emt 0:00:12]} Qc5 {[%emt 0:00:02] White is slightly better.} 15. Rd2 {[%emt 0:05:45]} Bd7 {[%emt 0:00:05]} 16. Be2 {[%emt 0:04:46][%cal Og5g6]} (16. g6 {with more complications.} O-O 17. Qd3 d5 18. exd5 Nxd5 19. Nxd5 exd5 20. Bg2) 16... O-O-O {[%emt 0:06:54]} 17. Rhd1 {[%emt 0:04:56]} Bc6 {[%emt 0:04:20]} 18. Rd4 {[%emt 0:05:24] b4 is the strong threat.} d5 {[%emt 0:12:11] [#]} 19. e5 $146 {[%emt 0:04:20]} (19. gxh6 $14 gxh6 20. Qe3) ({Predecessor:} 19. Qf2 Rd7 20. exd5 Nxd5 21. Nxd5 Rxd5 22. Bf3 Rxd4 23. Rxd4 Qb6 24. b3 Kb8 25. Bxc6 Qxc6 {½-½ (38) Goraj,B (2044)-Rudzinska,M (2215) Pokrzywna 2021}) 19... Nd7 {[%emt 0:10:57]} 20. Qg3 {[%emt 0:06:31]} (20. b4 $14 Qe7 21. a4) 20... g6 {[%emt 0:00:09]} (20... hxg5 $11 21. hxg5 Qe7) 21. a4 {[%emt 0:16:50]} (21. b4 $5 {[%cal Rb4c5]} Qe7 22. a4 $16) 21... a5 {[%emt 0:07:49] Inhibits b4.} 22. Nb5 {[%emt 0:02:42]} Bxb5 {[%emt 0:00:44]} 23. Bxb5 {[%emt 0:00:30][%cal Oh4h5]} Kb8 {[%emt 0:02:27]} 24. Kb1 {[%emt 0:00:50]} hxg5 {[%emt 0:12:08]} 25. hxg5 {[%emt 0:01:25]} Nb6 {[%emt 0:04:40]} 26. Qg2 {[%emt 0:02:58]} Rc8 {[%emt 0:03:18]} 27. Qd2 {[%emt 0:01:17]} Rh3 {[%emt 0:07:07]} (27... Rh4 {is interesting.} 28. Qxa5 Qxc2+ 29. Ka2 Qc5) 28. Rd3 {[%emt 0:01:20]} Rxd3 {[%emt 0:00:08]} 29. Qxd3 {[%emt 0:06:28]} (29. cxd3 $11 d4 30. Rh1 (30. Rc1 Qxc1+ 31. Qxc1 Rxc1+ 32. Kxc1 Nd5 $17)) 29... Rh8 {[%emt 0:00:06]} ({Black should try} 29... Nc4 $1 $15) 30. Qd2 $11 {[%emt 0:01:29]} Rh4 {[%emt 0:00:30]} 31. Rf1 {[%emt 0:03:20]} ({Reject} 31. Qxa5 Rxf4 32. Qd2 Rg4 $17) 31... Nc4 {[%emt 0:03:22]} 32. Bxc4 {[%emt 0:02:12]} Qxc4 $15 {[%emt 0:00:03][%mdl 4096] Endgame KQR-KQR} 33. Qf2 {[%emt 0:00:05]} Rh3 {[%emt 0:04:20][%cal Bh4h3,Bh3e3,Be3b3][%mdl 32]} 34. b3 $1 {[%emt 0:00:11]} Qc3 {[%emt 0:00:47] Black is more active.} 35. Rd1 $1 {[%emt 0:03:18]} Re3 {[%emt 0:00:59]} 36. Qh2 {[%emt 0:00:53]} (36. Qd2 $1 $15) 36... d4 $40 {[%emt 0:01:42][%mdl 128] Black has strong attack.} (36... Rf3 $19 {and Black stays clearly on top.} 37. Qe2 Rxf4) 37. Qf2 $2 {[%emt 0:01:58][%mdl 8192] [#] White does not recover from this.} (37. Qd2 $17 {is more resistant.}) 37... d3 $1 $19 {[%emt 0:01:13][%mdl 512] Black is clearly winning.} 38. Qd2 {[%emt 0:00:30]} (38. cxd3 Qxb3+) 38... dxc2+ {[%emt 0:00:29]} 39. Qxc2 {[%emt 0:00:03]} Qxb3+ {[%emt 0:00:07]} 40. Qxb3 {[%emt 0:00:15]} Rxb3+ {[%emt 0:00:03] KR-KR} 41. Kc2 {[%emt 0:00:28]} Rb4 {[%emt 0:00:12][%csl LRa4,LRf4]} 42. f5 {[%emt 0:00:11]} exf5 {[%emt 0:02:00][%cal Be6f5,Bf5f4,Bf4f3][%mdl 32]} 43. Rd7 {[%emt 0:00:20]} Rxa4 {[%emt 0:00:35]} 44. Rxf7 {[%emt 0:00:19]} Re4 {[%emt 0:00:26]} 45. Rf6 {[%emt 0:00:28]} Rxe5 {[%emt 0:00:26]} 46. Rxg6 {[%emt 0:00:07]} f4 {[%emt 0:04:18]} 47. Kd3 {[%emt 0:01:54]} f3 {[%emt 0:00:55] Weighted Error Value: White=0.44/Black=0.12 (very precise)} 0-1

[Event "15th Tashkent Open Agzamov 2022"]
[Site "Tashkent"]
[Date "2022.05.07"]
[Round "6.5"]
[White "Sanal, Vahap"]
[Black "Agmanov, Zhandos"]
[Result "1-0"]
[ECO "C13"]
[WhiteElo "2575"]
[BlackElo "2420"]
[Annotator "TA"]
[PlyCount "115"]
[EventDate "2022.05.05"]
[EventType "swiss"]
[EventCountry "UZB"]
[SourceTitle "playchess.com"]
[Source "ChessBase"]
[SourceQuality "1"]
[TimeControl "5400+30"]

{[%evp 12,115,26,27,28,7,9,25,16,0,0,0,0,0,0,0,0,0,0,-4,6,6,6,6,6,6,6,6,10,6,12,13,14,0,11,14,11,20,39,42,104,111,104,110,110,91,114,91,126,126,132,79,56,38,41,31,35,15,20,23,30,22,26,26,27,10,24,0,20,0,6,7,7,0,26,39,117,88,85,70,77,0,8,8,8,8,8,8,8,8,29972,29973,29977,29978,29978,29979,29979,29980,29980,29981,29981,29982,29982,29983,29983,29984]} 1. e4 {[%emt 0:00:06]} e6 {[%emt 0:01:20]} 2. d4 {[%emt 0:00:03]} d5 {[%emt 0:00:14]} 3. Nc3 {[%emt 0:00:07]} Nf6 {[%emt 0:01:19]} 4. Bg5 {[%emt 0:00:06]} dxe4 {[%emt 0:00:56]} 5. Nxe4 {[%emt 0:00:07]} Nbd7 {[%emt 0:00:20]} 6. Nf3 {[%emt 0:01:46]} h6 {[%emt 0:00:42]} 7. Bxf6 {[%emt 0:04:17]} Nxf6 {[%emt 0:00:22] C13: French: Classical System: 4 Bg5 Be7, Alekhine-Chatard Attack.} 8. Qd3 {[%emt 0:00:06]} Nxe4 {[%emt 0:06:57]} 9. Qxe4 {[%emt 0:00:06]} Qd5 {[%emt 0:00:40] Against Bc4. White has an edge.} 10. Qe3 {[%emt 0:00:28]} Bd6 {[%emt 0:01:28]} 11. Bd3 {[%emt 0:00:40] [#]} c5 $146 {[%emt 0:09:32]} ({Predecessor:} 11... O-O 12. O-O Rb8 13. c4 Qh5 14. c5 Be7 15. Ne5 Bf6 16. f4 Bxe5 17. fxe5 Qh4 {1-0 (24) Haubt,G (2285)-Mueller,G (2100) Germany 1991}) 12. Be4 {[%emt 0:04:44]} cxd4 {[%emt 0:04:46]} 13. Nxd4 {[%emt 0:00:48]} Qa5+ {[%emt 0:06:26]} 14. c3 {[%emt 0:01:17]} O-O {[%emt 0:00:33]} 15. g3 {[%emt 0:01:50]} e5 {[%emt 0:09:26]} 16. Nf5 {[%emt 0:04:37]} Bxf5 {[%emt 0:03:56]} 17. Bxf5 {[%emt 0:00:08]} e4 {[%emt 0:16:31]} 18. Bxe4 {[%emt 0:11:33]} f5 $1 {[%emt 0:01:29] [#]} 19. O-O-O $1 {[%emt 0:02:31][%cal Ba1d1,Bd1d6,Bd6d7][%mdl 32]} fxe4 {[%emt 0:00:59]} 20. Rxd6 {[%emt 0:00:05]} Qxa2 {[%emt 0:02:35] White must now prevent ...Qa1+.} 21. Rhd1 {[%emt 0:00:12]} Rae8 {[%emt 0:09:13]} 22. Rd7 {[%emt 0:14:01]} Qa1+ {[%emt 0:06:26]} 23. Kc2 {[%emt 0:00:22]} Qa4+ {[%emt 0:00:02]} 24. Kb1 {[%emt 0:00:10]} Rf3 {[%emt 0:05:48]} 25. Qc5 {[%emt 0:05:23] Threatens to win with Qd5+.} Rd3 {[%emt 0:06:04] Inhibits Qd5+.} ({Black should play} 25... Rff8 $14) 26. R7xd3 $16 {[%emt 0:01:11] The board is on fire.} ({Avoid the trap} 26. R1xd3 $2 exd3 27. Qd5+ Kh8 $19) 26... exd3 {[%emt 0:00:01][%mdl 4096] Endgame KQR-KQR} 27. Qd5+ {[%emt 0:00:13]} Kh8 {[%emt 0:00:03]} 28. Qxd3 {[%emt 0:00:09]} Qc6 {[%emt 0:00:23]} 29. h4 {[%emt 0:00:35]} (29. f4 {feels hotter.} Kg8 30. Qf5 Qa4 31. Qd5+) 29... Qf6 {[%emt 0:00:57]} 30. Rd2 {[%emt 0:09:03]} Qe6 {[%emt 0:00:34]} 31. h5 {[%emt 0:04:50]} ({Better is} 31. Kc2) 31... Qg4 {[%emt 0:01:16] Strongly threatening ...Re1+.} 32. Qb5 {[%emt 0:01:28][%csl LRb7,LRe8]} Qe4+ {[%emt 0:00:32]} 33. Ka2 {[%emt 0:00:26]} Re5 $1 {[%emt 0:02:39]} 34. Rd8+ {[%emt 0:07:53]} Kh7 {[%emt 0:00:00]} 35. Qd3 {[%emt 0:00:03] And now Qxe4+ would win.} Qxd3 {[%emt 0:00:02]} (35... Ra5+ {is interesting.} 36. Kb3 Qxd3 37. Rxd3 Rxh5 38. Rd7 Rb5+) 36. Rxd3 {[%emt 0:00:08]} Rxh5 $11 {[%emt 0:00:07] KR-KR} 37. Rd7 {[%emt 0:00:04]} Ra5+ {[%emt 0:02:03]} 38. Kb3 {[%emt 0:00:06]} b6 {[%emt 0:01:42]} 39. f4 {[%emt 0:01:11]} Kg6 {[%emt 0:00:21]} 40. g4 {[%emt 0:00:06]} Kf6 {[%emt 0:00:31]} 41. Kc4 {[%emt 0:00:14]} Ra2 {[%emt 0:00:54]} 42. b4 {[%emt 0:01:02]} g6 {[%emt 0:00:45]} 43. Kb5 {[%emt 0:01:43]} h5 {[%emt 0:00:33]} ({Black should try} 43... Rc2 $14) 44. Rd6+ $16 {[%emt 0:00:21]} Kg7 {[%emt 0:00:14] [#]} 45. f5 $1 {[%emt 0:02:32]} gxf5 {[%emt 0:00:16]} 46. gxf5 {[%emt 0:00:02]} (46. gxh5 $16 {h6+ is the strong threat.} f4 47. Rg6+ Kf7 48. Rg4) 46... a5 {[%emt 0:00:48]} ({Don't play} 46... h4 47. Rg6+ Kf7 48. Rh6 $16) 47. Kxb6 {[%emt 0:02:40]} axb4 {[%emt 0:00:07]} 48. cxb4 {[%emt 0:00:01]} Rf2 {[%emt 0:00:11]} 49. b5 {[%emt 0:01:01]} Rxf5 {[%emt 0:00:01]} 50. Kc6 {[%emt 0:00:18] Threatening mate with b6.} Rf1 $1 {[%emt 0:01:22] A mistake that costs the game.} 51. b6 {[%emt 0:01:17] White mates.} h4 {[%emt 0:00:58] [#]} 52. b7 $1 {[%emt 0:00:47]} Rc1+ {[%emt 0:00:34]} 53. Kd7 {[%emt 0:00:33]} Rb1 {[%emt 0:00:10]} 54. Kc7 {[%emt 0:00:05]} h3 {[%emt 0:00:43]} 55. b8=Q {[%emt 0:00:14]} Rxb8 {[%emt 0:00:04]} 56. Kxb8 {[%emt 0:00:03]} h2 {[%emt 0:00:03]} 57. Rd1 {[%emt 0:00:03]} Kf6 {[%emt 0:00:04]} 58. Rh1 {[%emt 0:00:03] Weighted Error Value: White=0.07 (flawless) /Black=0.06 (flawless)} 1-0

[Event "15th Tashkent Open Agzamov 2022"]
[Site "Tashkent"]
[Date "2022.05.07"]
[Round "6.6"]
[White "Van Foreest, Lucas"]
[Black "Abdisalimov, Abdimalik"]
[Result "0-1"]
[ECO "E64"]
[WhiteElo "2572"]
[BlackElo "2435"]
[Annotator "TA"]
[PlyCount "48"]
[EventDate "2022.05.05"]
[EventType "swiss"]
[EventCountry "UZB"]
[SourceTitle "playchess.com"]
[Source "ChessBase"]
[SourceQuality "1"]
[TimeControl "5400+30"]

{[%evp 15,48,34,26,0,27,0,0,0,0,-11,-10,-11,8,4,8,23,5,0,20,14,41,32,30,24,33,35,25,-311,-331,-325,-335,-335,-330,-630,-615]} 1. d4 {[%emt 0:03:44]} Nf6 {[%emt 0:00:20]} 2. c4 {[%emt 0:00:06]} g6 {[%emt 0:00:04]} 3. g3 {[%emt 0:00:13]} Bg7 {[%emt 0:05:04]} 4. Bg2 {[%emt 0:00:07]} O-O {[%emt 0:00:07]} 5. Nc3 {[%emt 0:00:05]} d6 {[%emt 0:00:11]} 6. Nf3 {[%emt 0:00:07]} c5 {[%emt 0:00:20]} 7. dxc5 {[%emt 0:00:49]} dxc5 {[%emt 0:00:11]} 8. Qxd8 {[%emt 0:00:54]} Rxd8 {[%emt 0:00:01]} 9. Ne5 {[%emt 0:00:14] Prevents Nc6. E64: King's Indian: Fianchetto: 6...c5 7 d5.} Na6 {[%emt 0:12:40] [#]} (9... Ne8 $5 {[%cal Rg7e5]} 10. Nd3 Nc6 $11) 10. a3 $146 {[%emt 0:14:01]} ({Predecessor:} 10. Bd2 Ne8 11. f4 Nd6 12. O-O-O f6 13. Nd3 Be6 14. b3 Rab8 15. Nd5 Kf7 16. e4 b5 17. cxb5 Nxb5 {1-0 (40) Tari,A (2618)-Van Foreest,J (2601) Chess.com INT 2019}) 10... Ne8 {[%emt 0:02:34]} 11. f4 {[%emt 0:07:22] The position is equal.} Nd6 {[%emt 0:00:24]} 12. O-O {[%emt 0:04:40]} f6 {[%emt 0:04:35]} 13. Nd3 {[%emt 0:01:34]} f5 {[%emt 0:02:44]} (13... Nxc4 {looks sharper.} 14. Bd5+ Rxd5 15. Nxd5 Be6) 14. Ne5 {[%emt 0:12:23]} Be6 {[%emt 0:00:18]} 15. Rb1 {[%emt 0:11:57]} Rab8 {[%emt 0:02:46]} 16. b3 {[%emt 0:00:34]} b5 {[%emt 0:15:21][%cal Rb5c4]} 17. Nd5 {[%emt 0:02:21]} Kf8 {[%emt 0:02:17] [#] White must now prevent ...bxc4.} 18. Nc6 $1 {[%emt 0:15:00][%csl LRa7,LRb8,LRd8,LRe7]} bxc4 {[%emt 0:00:22]} 19. Nxd8 {[%emt 0:06:32]} (19. Nxb8 $2 Rxb8 20. Bb2 Bxb2 21. Rxb2 cxb3 $19) 19... Rxd8 {[%emt 0:00:06]} 20. bxc4 {[%emt 0:03:03]} Nxc4 {[%emt 0:00:05]} 21. e4 {[%emt 0:01:22][%mdl 8192] [#] Loses the game.} (21. Rd1 $1 $11 {and White has nothing to worry.}) 21... Bd4+ $19 {[%emt 0:01:18]} 22. Kh1 {[%emt 0:02:19]} fxe4 {[%emt 0:00:04]} 23. Bxe4 {[%emt 0:00:33][%cal Of4f5]} Rxd5 {[%emt 0:01:03]} ({Don't go for} 23... Bxd5 $2 24. Bxd5 Rxd5 25. Rb7 $19) 24. Rb7 $2 {[%emt 0:00:08]} (24. h4) 24... Nd6 $1 {[%emt 0:01:04][%csl LRb7,LRe4] Weighted Error Value: White=0.61/Black=0.05 (flawless)} 0-1